Cogmind - Beta 9.6 @@@ ROGUE MODE // 2020.04.23 @ 22:11:21 Player: elricsfate Result: Destroyed by Y-45 Defender with Beam Rifle Performance ------------- Evolutions (1) 500 Regions Visited (3) 600 Robots Destroyed (10) 50 Value Destroyed (219) 219 Prototype IDs (0) 0 Alien Tech Used (0) 0 Bonus (0) 0 TOTAL SCORE: 1369 Bonus ------- None Cogmind --------- Core Integrity 0/400 Matter 252/300 Energy 100/100 System Corruption 2% Temperature Cool (9) Movement Core (200) Ox3 Location -9/Materials Parts ------- > --- POWER (1) -------- (None) > --- PROPULSION (4) --- (None) > --- UTILITY (2) ------ Small Storage Unit Medium Storage Unit > --- WEAPON (2) ------- (None) > --- INVENTORY (10) --- Small Storage Unit Medium Storage Unit Large Storage Unit Large Storage Unit Targeting Computer Targeting Computer Light Armor Plating EM Pulse Gun EM Pulse Gun Peak State ------------ > --- POWER ------------ Light Ion Engine > --- PROPULSION ------- Aluminum Leg Aluminum Leg > --- UTILITY ---------- Small Storage Unit Medium Storage Unit > --- WEAPON ----------- Assault Rifle Rocket Launcher > --- INVENTORY -------- Small Storage Unit Medium Storage Unit Large Storage Unit Large Storage Unit Targeting Computer Targeting Computer Light Armor Plating [Rating: 8] Favorites ----------- Power Light Ion Engine Engine Light Ion Engine Propulsion Aluminum Leg Leg Aluminum Leg Utility Small Storage Unit Storage Small Storage Unit Weapon Assault Rifle Energy Gun Medium Laser Ballistic Gun Assault Rifle Launcher Rocket Launcher Build | -11 -10 -10 -9 ------- Run | Scr Mat Min Mat Slots Evolved 2 | . . . 2 Power . | . . . . Propulsion 2 | . . . 2 Utility . | . . . . Weapon . | . . . . Parts Attached 9 | 6 1 1 1 Power 1 | 1 . . . Engine 1 | 1 . . . Core . | . . . . Reactor . | . . . . Propulsion 2 | 2 . . . Treads . | . . . . Leg 2 | 2 . . . Wheel . | . . . . Hover . | . . . . Flight . | . . . . Utility 2 | 1 1 . . Device . | . . . . Storage 2 | 1 1 . . Processor . | . . . . Hackware . | . . . . Protection . | . . . . Artifact . | . . . . Weapon 4 | 2 . 1 1 Energy Gun 1 | 1 . . . Energy Cannon . | . . . . Ballistic Gun 2 | 1 . . 1 Ballistic Cannon . | . . . . Launcher 1 | . . 1 . Special Weapon . | . . . . Impact Weapon . | . . . . Slashing Weapon . | . . . . Piercing Weapon . | . . . . Special Melee Weapon . | . . . . Unidentified Prototypes . | . . . . Parts Lost 7 | . 1 5 1 Power 1 | . . 1 . Propulsion 2 | . . 2 . Utility . | . . . . Weapon 4 | . 1 2 1 Highest Loss Streak 2 | . 1 2 1 Average Slot Usage (%) 71 | . 98 77 25 Engine 7 | . 14 8 . Leg 19 | . 28 23 . Storage 26 | . 27 28 22 Energy Gun 2 | . 13 . . Ballistic Gun 10 | . 14 11 3 Launcher 3 | . . 5 . Naked Turns . | . . . . Heaviest Build 21 | 11 19 21 13 Greatest Support 20 | 20 20 20 3 Greatest Overweight (x) 4 | . . 3 4 Average Overweight (x) . | . . . 3 Largest Inventory Capacity 10 | 6 10 10 10 Average Capacity 9 | 5 9 10 10 Most Carried 9 | 3 6 8 9 Average Carried 6 | . 4 7 7 Final Capacity 10 | 6 10 10 10 Final Carried 9 | . 6 8 9 Class Distribution -------------------- 100% | Mutant Dominant Class ---------------- Mutant | -10/Materials Mutant | -10/Mines Mutant | -9/Materials Resources | -11 -10 -10 -9 ----------- Run | Scr Mat Min Mat Matter Collected 363 | 240 . 123 . Remotely . | . . . . Salvage Created 202 | . 26 176 . Parts 12 | . 1 11 . Haulers Intercepted . | . . . . Recyclers Shooed . | . . . . Parts Field Recycled . | . . . . Retrieved Matter . | . . . . Parts Self-Destructed . | . . . . Prevented . | . . . . Kills | -11 -10 -10 -9 ------- Run | Scr Mat Min Mat Combat Hostiles Destroyed 7 | . . 7 . AOE 7 | . . 7 . Classes Destroyed 5 | . 1 4 . Builder 1 | . . 1 . Recycler 1 | . . 1 . Watcher 1 | . 1 . . Swarmer 3 | . . 3 . Grunt 4 | . . 4 . Best Kill Streak 4 | . 1 4 . Combat Bots Only 3 | . . 3 . Max Kills in Single Turn 2 | . 1 2 . Gunslinging . | . . . . Exploded 2 | . . 2 . Melee . | . . . . Uniques/NPCs Destroyed . | . . . . Combat | -11 -10 -10 -9 -------- Run | Scr Mat Min Mat Damage Taken 1331 | . 307 327 697 Core 566 | . 74 84 408 Absorbed by Shields . | . . . . Core Remaining (%) 68 | 100 . 36 . Volleys Fired 27 | . 14 11 2 Largest 2 | . 2 2 1 Hottest 70 | . 70 53 20 Shots Fired 49 | . 28 19 2 Gun 38 | . 28 8 2 Cannon . | . . . . Launcher 11 | . . 11 . Special . | . . . . Kinetic 24 | . 14 8 2 Thermal 14 | . 14 . . Explosive 11 | . . 11 . Electromagnetic . | . . . . Robot Hit Streak 3 | . 2 3 2 Robot Miss Streak 6 | . 6 2 . Penetration Max . | . . . . Secondary Targets . | . . . . Shots Hit Robots 22 | . 10 10 2 Core Hits 16 | . 1 12 3 Critical Hits . | . . . . Critical Kills . | . . . . Critical Parts Destroyed . | . . . . Melee Attacks . | . . . . Impact . | . . . . Slashing . | . . . . Piercing . | . . . . Sneak Attacks . | . . . . Combat Hostiles . | . . . . Follow-up Attacks . | . . . . Damage Inflicted 830 | . 139 669 22 Guns 208 | . 139 52 17 Cannons . | . . . . Explosions 617 | . . 617 . Melee . | . . . . Ramming 5 | . . . 5 Kinetic 143 | . 74 52 17 Thermal 65 | . 65 . . Explosive 617 | . . 617 . Electromagnetic . | . . . . Impact . | . . . . Slashing . | . . . . Piercing . | . . . . Highest Corruption 2 | . . . 2 Average Corruption 2 | . . . 2 Corruption Purged . | . . . . Effects 1 | . . . 1 Heat Flow Errors 1 | . . . 1 Overload Shots . | . . . . Overflow Damage 21 | . . 21 . Projectiles . | . . . . Explosions 21 | . . 21 . Melee . | . . . . Knockbacks . | . . . . Impact . | . . . . Kinetic . | . . . . Secondary . | . . . . Self-Inflicted Damage 93 | . . 91 2 Shots 4 | . . 4 . Rammed 10 | . . . 10 Targets Rammed 10 | . . . 10 Kicked . | . . . . Crushed . | . . . . Highest Temperature 221 | . 102 6 221 Average Temperature 40 | . 30 2 119 Received Heat Transfer 537 | . 171 132 234 Siege Activations . | . . . . Robots Corrupted . | . . . . Combat Hostiles . | . . . . Parts Fried . | . . . . Impact Corruptions . | . . . . Robots Melted . | . . . . Combat Hostiles . | . . . . Parts Melted . | . . . . Heat Transferred 185 | . 185 . . Parts Sabotaged . | . . . . Parts Stolen . | . . . . Parts Stripped . | . . . . Power Chain Reactions . | . . . . Missiles Intercepted . | . . . . Alert | -11 -10 -10 -9 ------- Run | Scr Mat Min Mat Peak Influence 126 | . 54 126 31 Average Influence 23 | . 21 28 16 Maximum Alert Level . | . . . . Low Security (%) 100 | 100 100 100 100 Level 1 . | . . . . Level 2 . | . . . . Level 3 . | . . . . Level 4 . | . . . . Level 5 . | . . . . High Security . | . . . . Max Security . | . . . . Squads Dispatched 1 | . 1 . . Investigation . | . . . . Extermination . | . . . . Reinforcement 1 | . 1 . . Assault . | . . . . Garrison . | . . . . Intercept . | . . . . Construction Impeded . | . . . . Haulers Reinforced . | . . . . Stealth | -11 -10 -10 -9 --------- Run | Scr Mat Min Mat Distress Signals 1 | . 1 . . Communications Jammed . | . . . . Distress Signals . | . . . . Times Spotted 18 | . 7 9 2 Peak Tracking Total 5 | . 5 3 2 Tactical Retreats . | . . . . Traps | -11 -10 -10 -9 ------- Run | Scr Mat Min Mat Traps Triggered . | . . . . Indirectly . | . . . . Trap Hack Attempts . | . . . . Triggered . | . . . . Disarmed . | . . . . Reprogrammed . | . . . . Reused . | . . . . Traps Extracted . | . . . . Installed . | . . . . Triggered . | . . . . Machines | -11 -10 -10 -9 ---------- Run | Scr Mat Min Mat Machines Disabled . | . . . . Max in Single Turn . | . . . . Machines Sabotaged . | . . . . Garrisons Compromised . | . . . . Overloaded Fab Kills . | . . . . Fab Network Shutdowns . | . . . . Hacking | -11 -10 -10 -9 --------- Run | Scr Mat Min Mat Machines Accessed 1 | . 1 . . Terminals 1 | . 1 . . Fabricators . | . . . . Repair Stations . | . . . . Recycling Units . | . . . . Scanalyzers . | . . . . Garrison Access . | . . . . Total Hacks 2 | . 2 . . Successful 2 | . 2 . . Failed . | . . . . Catastrophic . | . . . . Database Lockouts . | . . . . Manual . | . . . . Terminals 2 | . 2 . . Fabricators . | . . . . Repair Stations . | . . . . Recycling Units . | . . . . Scanalyzers . | . . . . Garrison Access . | . . . . Terminal Hacks 2 | . 2 . . Record 2 | . 2 . . Fabricator Hacks . | . . . . Repair Station Hacks . | . . . . Recycling Unit Hacks . | . . . . Scanalyzer . | . . . . Garrison Access Hacks . | . . . . Unauthorized Hacks . | . . . . Terminals . | . . . . Fabricators . | . . . . Repair Stations . | . . . . Recycling Units . | . . . . Scanalyzers . | . . . . Garrison Access . | . . . . Data Cores Recovered . | . . . . Used . | . . . . Hacking Detections . | . . . . Full Trace Events . | . . . . Feedback Events . | . . . . Feedback Blocked . | . . . . Robot Schematics Acquired . | . . . . Robots Built . | . . . . Matter . | . . . . Time . | . . . . Total Robot Build Rating . | . . . . Part Schematics Acquired . | . . . . Parts Built . | . . . . Matter . | . . . . Time . | . . . . Total Part Build Rating . | . . . . Parts Repaired . | . . . . Time . | . . . . Parts Recycled . | . . . . Recycled Matter . | . . . . Retrieved Matter . | . . . . Retrieved Components . | . . . . Parts Scanalyzed . | . . . . Part Schematics Acquired . | . . . . Parts Damaged . | . . . . Bothacking | -11 -10 -10 -9 ------------ Run | Scr Mat Min Mat Used RIF Installer . | . . . . Robots Hacked . | . . . . Non-combat . | . . . . Combat . | . . . . Robot Hacks Applied . | . . . . Relay Couplers Released . | . . . . Robots Rewired . | . . . . Allies Hacked . | . . . . Hacks Repelled . | . . . . Allies | -11 -10 -10 -9 -------- Run | Scr Mat Min Mat Total Allies . | . . . . Largest Group . | . . . . Highest-Rated Group . | . . . . Highest-Rated Ally . | . . . . Total Orders . | . . . . Ally Attacks . | . . . . Total Damage . | . . . . Kills . | . . . . Allies Corrupted . | . . . . Allies Melted . | . . . . Intel | -11 -10 -10 -9 ------- Run | Scr Mat Min Mat Robot Analysis Total . | . . . . Derelict Logs Recovered 1 | . . 1 . Drone Launches . | . . . . Drone Recoveries . | . . . . Exploration | -11 -10 -10 -9 ------------- Run | Scr Mat Min Mat Turns Passed 934 | 54 170 536 174 Spaces Moved 599 | 39 101 391 68 Core 85 | 6 . 11 68 Treads . | . . . . Legs 514 | 33 101 380 . Wheels . | . . . . Hover . | . . . . Flight . | . . . . Fastest Speed 50 | 50 120 120 200 Average Speed 135 | 109 120 128 216 Slowest Speed 250 | 120 120 200 250 Overloaded Moves . | . . . . Propulsion Burnouts . | . . . . Robots Hopped . | . . . . Cave-ins Triggered . | . . . . Exploration Rate (%) 26 | 3 23 70 10 Regions Visited 3 Branch Regions 1 Pre-discovered Areas . | . . . . Known Exits Taken . | . . . . Unknown Exits Taken 3 | 1 1 1 . Scrap Searched 1 | . . 1 . Spaces Dug . | . . . . Terrain Destroyed 133 | . . 133 . Melee . | . . . . Projectile . | . . . . AOE 133 | . . 133 . Actions | -11 -10 -10 -9 --------- Run | Scr Mat Min Mat Total 660 | 50 122 405 83 Wait . | . . . . Move 596 | 38 100 390 68 Hop . | . . . . Pick Up 18 | 6 7 3 2 Fast Attach . | . . . . Attach 9 | 6 1 1 1 Detach . | . . . . Swap . | . . . . Drop . | . . . . Fire 27 | . 14 11 2 Melee . | . . . . Ram 10 | . . . 10 Kick . | . . . . Crush . | . . . . Escape Stasis . | . . . . Rewire . | . . . . Trap . | . . . . Miscellaneous . | . . . . Route ------- -11/Scrapyard -10/Materials -10/Mines (discovered 2 exits: [*Mat x2]) -9/Materials History --------- Turn | Location | Event 19 | -11/Scrapyard | Discovered new exit (range 16) 55 | -11/Scrapyard | Entered Materials 219 | -10/Materials | Discovered new exit (range 6) 225 | -10/Materials | Entered Mines 232 | -10/Mines | Received a Rocket Launcher from a helpful Derelict 311 | -10/Mines | Build established: Mutant 351 | -10/Mines | Learned Materials emergency access door positions 498 | -10/Mines | Discovered new exit (range 10) 677 | -10/Mines | Discovered new exit (range 8) 759 | -10/Mines | Core integrity fell below 50% 761 | -10/Mines | Entered Materials 761 | -9/Materials | Evolved 2 slots: Propulsion x2 874 | -9/Materials | Core integrity fell below 50% 914 | -9/Materials | Core integrity fell below 20% 935 | -9/Materials | Destroyed by Y-45 Defender with Beam Rifle Last Messages --------------- 00740_ Aluminum Leg destroyed. 00749_ The unstable cave ceiling collapses. 00753_ K-01 Serf collects debris. 00754_ The unstable cave ceiling collapses. 00754_ U-05 Engineer lays Concrete. 00755_ U-05 Engineer builds a Wall. 00758_ The unstable cave ceiling collapses. 00759_ U-05 Engineer builds a Wall. PARAMETERS=PROPULSION_2 LOCATION=UNKNOWN GOAL=ESCAPE Loading Materials emergency access points (x4)... 00821_ Lgt. Assault Rifle destroyed. 00835_ Slammed into Y-45 Defender. 00845_ Destabilizing: System corrupted (+2). 00847_ Slammed into Y-45 Defender. 00866_ System corrupted: Heat flow error (+249). 00873_ Electrolysis Chamber disabled. 00873_ Slammed into Y-45 Defender. 00929_ Acquired EM Pulse Gun. Map ----- +----------------------------------------------------+ | ?????????????????????????????????????????????????? | | ?????????????????????????????????????????????????? | | ?????????????????????????????????????????????????? | | ?????????????????????????????????????????????????? | | ?????????????????????????????????????????????????? | | ?????????????????????????????????????????????????? | | ?????????????????????????????????????????????????? | | ????????????????????????????????????????? ?????? | | ????????????????????????????????????????? #????? | | ????????????????????????????????????????# #????? | | ???????????????????????????###########??# #????? | | ???????????????????????????# """ """ #??# #????? | | ???????????????????????????# """ """ #??# #????? | | ???????????????????????????# """ """ #??# #????? | | ????????????????????????#### #??# #????? | | ????????????????????##### ## ! ! #??# +????? | | ????????????????????# ## #??# #????? | | ????????????????????# "" Y##! #??# #????? | | ????????????????????# """ ## !#?## ##???? | | ????????????????????# S" #######+###### #???? | | ????????????????????# """ # #???? | | ????????????????????# """ ; #???? | | ????????????????????# # #???? | | ????????????????????# ###### ##### #???? | | ????????????????????# #????# #???### ###???? | | ????????????????????# @#????# #?????# #?????? | | ????????????????????# #????# #######/###???? | | ????????????????????# #????# # T #???? | | ????????????????????#######????# # #???? | | ???????????????????????????????# # """ " " #???? | | ???????????????????????????????# # """ """ #???? | | ???????????????????????????????# + """ """ #???? | | ???????????????????????????????# # #???? | | ???????????????????????????????# # #???? | | ???????????????????????????????# # #???? | | ???????????????????????????????# ###########???? | | ???????????????????????????????# #?????????????? | | ???????????????????????????????# #?????????????? | | ???????????????????????????????# #?????????????? | | ???????????????????????????????# #?????????????? | | ???????????????????????????????#####?????????????? | | ?????????????????????????????????????????????????? | | ?????????????????????????????????????????????????? | | ?????????????????????????????????????????????????? | | ?????????????????????????????????????????????????? | | ?????????????????????????????????????????????????? | | ?????????????????????????????????????????????????? | | ?????????????????????????????????????????????????? | | ?????????????????????????????????????????????????? | | ?????????????????????????????????????????????????? | +----------------------------------------------------+ Best States ------------- Heat Dissipation 28 Energy Generation 10 Energy Capacity 125 Matter Stores 280 Matter Capacity 300 Sight Range 16 Terrain Scan Density 10 Evasion (%) 40 Item Schematics ----------------- None Robot Schematics ------------------ None Fabricated ------------ Nothing Alien Tech Used ----------------- None Achievements -------------- None Challenges ------------ None Game ------ Seed CentriumFluxShielding Manual? 0 Play Time 00:09:23 Cumulative 4.2 hours Start 2020.04.23 @ 22:00:04 End 2020.04.23 @ 22:11:21 Sessions 1 Manual Loads 0 Difficulty Rogue Special Mode None Game No. 11 Rogue 11 Adventurer 0 Explorer 0 Win Type - Total 0 Types 0/0/0/0/0/0/0 Lore% 5 Gallery% 10 Achievement% 9 Wizard Run 0 Options --------- ASCII 0 Keyboard 0 Movement Numpad Keybinds 0 Fullscreen 1 Font 18/X11 Map View 76x50 Tactical HUD 1 Map Filters NONE Filters NONE Steam 1 RUN: 1e49ebb5-236d-4060-9e55-96be077ec6fc